bitfinex/quotes_SOLUSD_20241028
["timestamp","ask_amount","ask_price","bid_price","bid_amount"]
[1730106138746,5.6532,176.89,176.85,17.30520307]
[1730106139069,87.30520307,176.88,176.83,17.30520307]
[1730106139757,0.25098,176.87,176.83,17.30520307]
[1730106140271,5.6541,176.86,176.83,17.30520307]
[1730106141365,5.6541,176.86,176.82,17.30520307]
[1730106142849,0.25098,176.85,176.81,17.30520307]
[1730106143051,0.12549,176.81,176.78,17.30520307]
[1730106143356,0.12549,176.81,176.77,17.30520307]
[1730106143874,0.12549,176.81,176.76,17.30520307]
[1730106144254,5.6561,176.8,176.76,17.30520307]
[1730106144951,5.6561,176.8,176.77,17.30520307]
[1730106145352,5.6561,176.8,176.78,17.30520307]
[1730106146481,5.6561,176.8,176.78,17.30520307]
[1730106146773,5.6561,176.8,176.77,17.30520307]
[1730106147072,5.6561,176.8,176.78,17.30520307]
[1730106148771,5.6561,176.8,176.77,17.30520307]
[1730106150173,5.6554,176.82,176.78,17.30520307]
[1730106150391,5.6545,176.85,176.81,17.30520307]
[1730106150552,5.48479275,176.85,176.82,17.30520307]
[1730106150878,5.6516,176.94,176.84,17.30520307]
[1730106151051,30.0,176.85,176.81,43.776884]
[1730106151456,30.0,176.85,176.84,58.38729014]
[1730106151657,5.6516,176.94,176.84,58.38729014]
[1730106151871,5.6516,176.94,176.9,17.30520307]
[1730106152082,30.0,176.91,176.9,17.30520307]
[1730106152779,5.6524,176.92,176.9,17.30520307]
[1730106152960,5.6524,176.92,176.91,17.30520307]
[1730106153753,5.90258,176.94,176.91,17.30520307]
[1730106154168,5.90258,176.94,176.9,17.30520307]
[1730106156766,5.77709,176.94,176.9,17.30520307]
[1730106157583,5.77709,176.94,176.91,17.30520307]
[1730106157773,5.77709,176.94,176.9,17.30520307]
[1730106158159,23.08229307,176.94,176.89,17.30520307]
[1730106158968,37.21129307,176.94,176.89,17.30520307]
[1730106159184,17.30520307,176.93,176.88,17.30520307]
[1730106159476,37.21129307,176.94,176.88,17.30520307]
[1730106159686,37.21129307,176.94,176.89,17.30520307]
[1730106159978,5.6529,176.9,176.89,17.30520307]
[1730106163764,5.6522,176.92,176.89,17.30520307]
[1730106164488,5.6522,176.92,176.88,17.30520307]
[1730106166082,5.6522,176.92,176.89,17.30520307]
[1730106166677,5.6522,176.92,176.9,17.30520307]
[1730106167275,5.6522,176.92,176.89,17.30520307]
[1730106167776,5.6522,176.92,176.88,17.30520307]
[1730106173190,5.6522,176.92,176.89,17.30520307]
[1730106173863,5.6522,176.92,176.9,17.30520307]
[1730106174785,5.6522,176.92,176.89,17.30520307]
[1730106176271,5.6522,176.92,176.88,17.30520307]
[1730106180591,5.6522,176.92,176.88,11.06294397]
[1730106180976,5.6522,176.92,176.91,11.06294397]
[1730106181288,35.6522,176.92,176.91,11.06294397]
[1730106183097,5.6522,176.92,176.91,11.06294397]
[1730106183300,25.77679,176.95,176.91,11.06294397]
[1730106183468,25.77679,176.95,176.92,11.06294397]
[1730106184177,25.77679,176.95,176.91,11.06294397]
[1730106186696,5.77679,176.95,176.91,11.06294397]
[1730106187395,19.90499,176.95,176.92,11.06294397]
[1730106187570,19.90499,176.95,176.93,11.06294397]
[1730106188080,19.90499,176.95,176.92,11.06294397]
[1730106188802,5.6513,176.95,176.93,11.06294397]
[1730106188980,5.65,176.99,176.94,11.06294397]
[1730106189182,5.65,176.99,176.96,11.06294397]
[1730106189877,5.65,176.99,176.97,11.06294397]
[1730106190187,5.6497,177.0,176.97,11.06294397]
[1730106191507,20.12549,177.0,176.97,11.06294397]
[1730106191805,19.773,177.01,176.98,11.06294397]
[1730106192103,0.5903972,177.06,177.0,11.06294397]
[1730106192299,5.6481,177.05,176.95,43.976884]
[1730106192498,5.6481,177.05,176.96,0.1]
[1730106192701,6.2382972,177.06,176.97,0.1]
[1730106192900,6.2382972,177.06,176.97,0.2]
[1730106192901,0.5903972,177.06,176.97,0.2]
[1730106193073,0.5903972,177.06,177.05,11.06294397]
[1730106193274,6.2381972,177.06,177.04,11.06294397]
[1730106194104,6.2381972,177.06,177.05,11.06294397]
[1730106194484,6.2381972,177.06,177.05,17.25175076]
[1730106195500,0.5903972,177.06,177.05,22.89985076]
[1730106198812,5.6446,177.16,177.14,17.25175076]
[1730106199586,5.6446,177.16,177.15,17.25175076]
[1730106200312,5.6436,177.19,177.15,17.25175076]
[1730106200599,19.7482,177.23,177.18,17.25175076]
[1730106200807,19.7482,177.23,177.19,17.25175076]
[1730106201179,19.7482,177.23,177.2,17.25175076]
[1730106201409,5.6423,177.23,177.22,17.25175076]
[1730106201994,5.6423,177.23,177.2,17.25175076]
[1730106202306,22.89405076,177.23,177.18,17.25175076]
[1730106202476,17.25175076,177.22,177.16,17.25175076]
[1730106202680,17.25175076,177.22,177.12,22.89755076]
[1730106202681,5.643,177.21,177.17,17.25175076]
[1730106202988,5.643,177.21,177.18,17.25175076]
[1730106203308,5.643,177.21,177.17,17.25175076]
[1730106203604,31.35765076,177.23,177.18,17.25175076]
[1730106203794,25.76819,177.22,177.18,17.25175076]
[1730106204196,5.6427,177.22,177.19,17.25175076]
[1730106204396,5.6427,177.22,177.21,17.25175076]
[1730106205008,5.6427,177.22,177.2,17.25175076]
[1730106205189,4.6427,177.22,177.19,17.25175076]
[1730106205384,5.6423,177.23,177.2,17.25175076]
[1730106205784,5.6423,177.23,177.19,17.25175076]
[1730106206903,22.89405076,177.23,177.18,17.25175076]
[1730106207108,22.89405076,177.23,177.17,17.25175076]
[1730106207411,17.25175076,177.21,177.16,17.25175076]
[1730106208597,5.6433,177.2,177.16,17.25175076]
[1730106208910,5.6433,177.2,177.17,17.25175076]
[1730106209113,5.6433,177.2,177.18,17.25175076]
[1730106209493,5.643,177.21,177.18,17.25175076]
[1730106210587,5.6423,177.23,177.2,17.25175076]
[1730106210985,5.6423,177.23,177.19,17.25175076]
[1730106211212,36.99995076,177.23,177.18,17.25175076]
[1730106211411,17.25175076,177.22,177.17,17.25175076]
[1730106211607,5.6423,177.23,177.19,17.25175076]
[1730106212883,5.6423,177.23,177.12,17.25175076]
[1730106213111,36.99995076,177.23,177.17,17.25175076]
[1730106214590,5.643,177.21,177.17,17.25175076]
[1730106214785,22.89475076,177.21,177.16,17.25175076]
[1730106216097,17.25175076,177.22,177.17,17.25175076]
[1730106216306,0.12549,177.21,177.17,17.25175076]
[1730106216919,17.37724076,177.21,177.16,17.25175076]
[1730106218411,5.6433,177.2,177.16,17.25175076]
[1730106218990,17.25175076,177.17,177.12,17.25175076]
[1730106219991,17.25175076,177.18,177.12,17.25175076]
[1730106220411,5.6442,177.17,177.12,17.25175076]
[1730106220601,22.89505076,177.2,177.15,17.25175076]
[1730106221122,17.25175076,177.18,177.13,17.25175076]
[1730106221807,22.89535076,177.19,177.14,17.25175076]
[1730106223039,17.25175076,177.17,177.12,17.25175076]
[1730106223810,17.25175076,177.18,177.13,17.25175076]
[1730106224028,5.6442,177.17,177.13,17.25175076]
[1730106224194,22.89595076,177.17,177.12,17.25175076]
[1730106224396,5.6442,177.17,177.13,17.25175076]
[1730106224714,5.6442,177.17,177.14,17.25175076]
[1730106225801,5.6436,177.19,177.14,17.25175076]
[1730106226603,22.89535076,177.19,177.14,17.25175076]
[1730106228299,17.25175076,177.18,177.14,17.25175076]
[1730106228520,5.6442,177.17,177.13,17.25175076]
[1730106229120,5.6442,177.17,177.15,17.25175076]
[1730106229323,25.6433,177.2,177.16,17.25175076]
[1730106229623,25.6433,177.2,177.11,19.7616]
[1730106229624,42.89505076,177.2,177.15,17.25175076]
[1730106231241,17.25175076,177.19,177.14,17.25175076]
[1730106233427,5.6439,177.18,177.14,17.25175076]
[1730106234625,22.89565076,177.18,177.13,17.25175076]
[1730106236319,5.6439,177.18,177.13,17.25175076]
[1730106238516,17.25175076,177.17,177.12,17.25175076]
[1730106238830,22.89565076,177.18,177.13,17.25175076]
[1730106240326,5.6439,177.18,177.14,17.25175076]
[1730106240522,5.6439,177.18,177.15,17.25175076]
[1730106240831,5.643,177.21,177.17,17.25175076]
[1730106241138,5.643,177.21,177.18,17.25175076]
[1730106242124,17.25175076,177.23,177.2,17.25175076]
[1730106242125,5.6423,177.23,177.2,17.25175076]
[1730106242316,5.6423,177.23,177.21,17.25175076]
[1730106242728,5.6423,177.23,177.2,17.25175076]
[1730106245934,5.6423,177.23,177.21,17.25175076]
[1730106246539,5.6423,177.23,177.21,11.0212844]
[1730106247432,5.6423,177.23,177.22,11.0212844]
[1730106250147,0.5903972,177.24,177.22,11.0212844]
[1730106250320,6.2324972,177.24,177.23,11.0212844]
[1730106252823,6.2324972,177.24,177.22,11.0212844]
[1730106253141,6.2324972,177.24,177.23,11.0212844]
[1730106255823,0.5903972,177.24,177.23,11.0212844]
[1730106257438,0.5903972,177.24,177.22,11.0212844]
[1730106257638,6.2323972,177.24,177.21,11.0212844]
[1730106257847,17.2536816,177.24,177.16,29.421484]
[1730106258040,17.2536816,177.24,177.19,11.0212844]
[1730106258225,6.2323972,177.24,177.2,11.0212844]
[1730106262444,11.0212844,177.22,177.14,5.6451]
[1730106262622,11.0212844,177.19,177.11,15.6504]
[1730106262822,11.0212844,177.18,177.13,11.0212844]
[1730106263344,11.0212844,177.16,177.1,14.116]
[1730106263546,11.0212844,177.16,177.11,11.0212844]
[1730106264436,5.6449,177.15,177.11,11.0212844]
[1730106265237,5.6449,177.15,177.1,19.7625]
[1730106265434,11.0212844,177.14,177.09,16.6679844]
[1730106266445,17.24321934,177.14,177.09,22.88991934]
[1730106266749,17.24321934,177.11,177.06,17.24321934]
[1730106266924,17.24321934,177.1,177.05,17.24321934]
[1730106267224,17.24321934,177.1,177.04,37.01271934]
[1730106267425,17.24321934,177.1,177.05,17.24321934]
[1730106268236,22.88981934,177.1,177.05,17.24321934]
[1730106269337,17.24321934,177.09,177.04,37.01271934]
[1730106269722,17.24321934,177.07,177.02,22.89211934]
[1730106269929,17.24321934,177.06,177.01,31.36661934]
[1730106270127,5.6466,177.1,177.01,31.36661934]
[1730106270128,22.89141934,177.05,177.01,14.1234]
[1730106270432,22.89101934,177.06,177.01,31.36661934]
[1730106270631,22.89101934,177.06,177.01,37.01591934]
[1730106271055,5.6474,177.08,177.03,17.24321934]
[1730106271234,5.6474,177.08,177.01,19.7727]
[1730106271235,5.6474,177.08,177.04,17.24321934]
[1730106272650,16.5524,177.12,177.04,17.24321934]
[1730106272651,33.79561934,177.12,177.07,17.24321934]
[1730106272949,5.6462,177.11,177.07,17.24321934]
[1730106273146,14.1138,177.14,177.04,19.7694]
[1730106273147,5.6452,177.14,177.1,17.24321934]
[1730106273328,5.6452,177.14,177.04,19.8694]
[1730106273329,5.6452,177.14,177.11,17.24321934]
[1730106273528,17.24321934,177.19,177.13,17.24321934]
[1730106273735,5.6436,177.19,177.15,17.24321934]
[1730106274732,22.88681934,177.19,177.14,17.24321934]
[1730106276560,5.6436,177.19,177.15,17.24321934]
[1730106277646,5.6436,177.19,177.1,0.1]
[1730106277852,5.6436,177.19,177.16,17.24321934]
[1730106279033,22.88681934,177.19,177.14,17.24321934]
[1730106280556,5.6436,177.19,177.15,17.24321934]
[1730106284569,5.6436,177.19,177.16,17.24321934]
[1730106286166,5.6436,177.19,177.17,17.24321934]
[1730106286460,5.6436,177.19,177.15,17.24321934]
[1730106287575,17.24321934,177.16,177.11,17.24321934]
[1730106288063,17.24321934,177.15,177.09,17.24321934]
[1730106288245,17.24321934,177.14,177.09,17.24321934]
[1730106288444,17.24321934,177.14,177.08,17.24321934]
[1730106288871,17.24321934,177.13,177.08,17.24321934]
[1730106289665,17.24321934,177.12,177.07,17.24321934]
[1730106289848,17.24321934,177.11,177.05,17.24321934]
[1730106290355,14.40184834,177.1,177.05,17.24321934]
[1730106291057,5.6464,177.11,177.06,17.24321934]
[1730106293169,17.24321934,177.11,177.06,17.24321934]
[1730106293866,16.4746,177.13,177.08,17.24321934]
[1730106294048,17.24321934,177.15,177.1,17.24321934]
[1730106294465,22.88781934,177.16,177.1,17.24321934]
[1730106294668,5.6446,177.16,177.12,17.24321934]
[1730106295448,5.6446,177.16,177.13,17.24321934]
[1730106295650,15.6449,177.18,177.14,17.24321934]
[1730106295859,5.6438,177.19,177.16,17.24321934]
[1730106296153,6.4761,177.21,177.16,17.24321934]
[1730106297360,5.6433,177.2,177.16,17.24321934]
[1730106297550,5.643,177.21,177.19,17.24321934]
[1730106299653,5.643,177.21,177.18,17.24321934]
[1730106299863,5.643,177.21,177.17,17.24321934]
[1730106300254,5.643,177.21,177.16,17.24321934]
[1730106300255,22.88621934,177.21,177.16,17.24321934]
[1730106300977,17.24321934,177.2,177.15,17.24321934]
[1730106301566,22.88621934,177.21,177.16,17.24321934]
[1730106304178,17.24321934,177.2,177.15,17.24321934]
[1730106304383,22.88621934,177.21,177.15,17.24321934]
[1730106306863,22.88621934,177.21,177.16,17.24321934]
[1730106307460,5.643,177.21,177.16,17.24321934]
[1730106308884,5.643,177.21,177.17,17.24321934]
[1730106310163,0.5903972,177.24,177.2,17.24321934]
[1730106310378,0.5903972,177.24,177.21,17.24321934]
[1730106310379,5.6423,177.23,177.21,17.24321934]
[1730106310880,6.2324972,177.24,177.21,17.24321934]
[1730106311062,6.2324972,177.24,177.22,17.24321934]
[1730106311263,0.5903972,177.24,177.23,17.24321934]
[1730106311680,0.5903972,177.24,177.22,17.24321934]
[1730106312466,6.2323972,177.24,177.22,17.24321934]
[1730106313186,6.2323972,177.24,177.2,5.6432]
[1730106313187,6.2323972,177.24,177.2,22.88641934]
[1730106313676,6.2323972,177.24,177.2,17.24321934]
[1730106314080,17.24321934,177.23,177.18,17.24321934]
[1730106314279,6.2323972,177.24,177.16,14.1115]
[1730106314280,17.24321934,177.22,177.17,17.24321934]
[1730106314598,17.24321934,177.23,177.17,17.24321934]
[1730106315483,5.6427,177.22,177.17,17.24321934]
[1730106316570,22.88591934,177.22,177.17,17.24321934]
[1730106316771,17.24321934,177.21,177.16,17.24321934]
[1730106317586,17.24321934,177.22,177.17,17.24321934]
[1730106317769,5.6427,177.22,177.18,17.24321934]
[1730106318274,17.24321934,177.21,177.16,31.35471934]
[1730106319070,5.6433,177.2,177.16,31.35471934]
[1730106320294,5.6433,177.2,177.17,17.24321934]
[1730106320496,5.6433,177.2,177.14,5.6451]
[1730106320671,17.24321934,177.19,177.14,17.24321934]
[1730106321189,5.6436,177.19,177.14,17.24321934]
[1730106322600,17.24321934,177.18,177.13,37.00231934]
[1730106322776,22.88681934,177.19,177.14,17.24321934]
[1730106325097,5.6436,177.19,177.16,17.24321934]
[1730106325271,35.7477,177.23,177.17,17.24321934]
[1730106325272,17.24321934,177.22,177.17,17.24321934]
[1730106325473,5.643,177.21,177.17,17.24321934]
[1730106326192,0.5903972,177.24,177.2,17.24321934]
[1730106326396,6.2326972,177.24,177.21,17.24321934]
[1730106327290,0.5903972,177.24,177.22,17.24321934]
[1730106327498,0.5903972,177.24,177.23,17.24321934]
[1730106329279,0.5903972,177.24,177.22,17.24321934]
[1730106329684,6.2325972,177.24,177.2,17.24321934]
[1730106330591,23.47581654,177.24,177.19,17.24321934]
[1730106331091,17.24321934,177.23,177.18,17.24321934]
[1730106331478,17.24321934,177.22,177.17,17.24321934]
[1730106332590,5.643,177.21,177.17,17.24321934]
[1730106333693,5.6426,177.23,177.19,17.24321934]
[1730106333885,5.6426,177.23,177.16,5.6445]
[1730106333886,5.6426,177.23,177.2,17.24321934]
[1730106334287,5.6426,177.23,177.19,17.24321934]
[1730106334591,5.6426,177.23,177.2,17.24321934]
[1730106335495,0.5903972,177.24,177.21,17.24321934]
[1730106335689,0.5903972,177.24,177.23,17.24321934]
[1730106336380,0.5903972,177.24,177.22,17.24321934]
[1730106337488,6.2324972,177.24,177.21,17.24321934]
[1730106338381,6.2324972,177.24,177.22,17.24321934]
[1730106340589,6.2324972,177.24,177.23,17.24321934]
[1730106341513,0.5903972,177.24,177.23,17.24321934]
[1730106344503,0.5903972,177.24,177.23,22.88551934]
[1730106348117,0.5903972,177.24,177.23,46.66240334]
[1730106355320,0.5903972,177.24,177.23,66.66240334]
[1730106356419,0.5903972,177.24,177.23,49.419184]
[1730106356601,0.5903972,177.24,177.23,60.43290386]
[1730106356798,0.5903972,177.24,177.23,49.419184]
[1730106357123,0.5903972,177.24,177.23,60.43290386]
[1730106357819,0.5903972,177.24,177.23,43.776884]
[1730106358119,0.5903972,177.24,177.23,11.01371986]
[1730106360406,0.5903972,177.24,177.22,5.6426]
[1730106360720,0.5903972,177.24,177.23,17.21633286]
[1730106360918,0.5903972,177.24,177.18,0.1]
[1730106361104,0.5903972,177.24,177.18,0.22549]
[1730106361425,0.5903972,177.24,177.23,17.21633286]
[1730106364421,0.5903972,177.24,177.22,17.21633286]
[1730106364621,0.5903972,177.24,177.2,14.1076]
[1730106364622,17.21633286,177.23,177.18,22.86023286]
[1730106364829,23.44883006,177.24,177.19,17.21633286]
[1730106365295,6.2324972,177.24,177.2,17.21633286]
[1730106367023,23.44883006,177.24,177.19,17.21633286]
[1730106367815,0.5903972,177.24,177.22,17.21633286]
[1730106368124,0.5903972,177.24,177.23,17.21633286]
[1730106369719,0.5903972,177.24,177.23,22.85863286]
[1730106370231,0.5903972,177.24,177.23,46.63551686]
[1730106376115,0.5903972,177.24,177.23,66.63551686]
[1730106377911,0.5903972,177.24,177.23,66.98649686]
[1730106378423,0.5903972,177.24,177.23,67.08649686]
[1730106379020,5.6391,177.34,177.26,0.1]
[1730106379218,5.6391,177.34,177.31,17.21633286]
[1730106380532,11.01313258,177.32,177.27,11.01313258]
[1730106381420,11.01313258,177.3,177.26,30.75803258]
[1730106381832,16.65303258,177.31,177.26,30.75803258]
[1730106382937,15.0936,177.35,177.28,11.01313258]
[1730106383114,16.65193258,177.34,177.29,11.01313258]
[1730106383437,5.6388,177.34,177.31,11.01313258]
[1730106383635,30.0,177.32,177.31,11.01313258]
[1730106384712,5.6388,177.34,177.31,11.01313258]
[1730106386630,15.0936,177.35,177.33,11.01313258]
[1730106387138,20.7322,177.35,177.33,11.01313258]
[1730106387517,20.7322,177.35,177.3,23.776884]
[1730106387717,20.7322,177.35,177.32,11.01313258]
[1730106388849,20.7322,177.35,177.33,11.01313258]
[1730106391435,20.7322,177.35,177.32,11.01313258]
[1730106392348,5.6386,177.35,177.33,11.01313258]
[1730106392521,5.6386,177.35,177.3,29.416884]
[1730106392722,5.6386,177.35,177.32,11.01313258]
[1730106400757,5.6386,177.35,177.31,11.01313258]
[1730106402649,11.01313258,177.32,177.26,14.1031]
[1730106402955,11.01313258,177.31,177.26,25.11623258]
[1730106403449,11.01313258,177.32,177.28,11.01313258]
[1730106404032,16.65273258,177.32,177.28,11.01313258]
[1730106404240,5.6396,177.32,177.29,11.01313258]
[1730106405134,5.6396,177.32,177.28,11.01313258]
[1730106405861,5.6396,177.32,177.28,16.65383258]
[1730106406159,5.6396,177.32,177.29,11.01313258]
[1730106408363,5.6396,177.32,177.28,11.01313258]
[1730106409163,5.6396,177.32,177.24,44.027864]
[1730106409346,5.6396,177.32,177.28,11.01313258]
[1730106409663,5.6396,177.32,177.28,16.65383258]
[1730106410664,16.75233258,177.33,177.28,16.65383258]
[1730106415173,16.65233258,177.33,177.28,16.65383258]
[1730106415341,5.6392,177.33,177.29,11.01313258]
[1730106418759,5.6402,177.3,177.19,0.1]
[1730106418961,16.65313258,177.31,177.26,11.01313258]
[1730106419260,11.01313258,177.29,177.19,0.22549]
[1730106419451,11.11313258,177.29,177.24,11.01313258]
[1730106419769,11.01313258,177.28,177.23,11.01313258]
[1730106419954,11.01313258,177.26,177.21,11.01313258]
[1730106420264,11.01313258,177.25,177.19,11.01313258]
[1730106420674,11.01313258,177.25,177.2,11.01313258]
[1730106420869,16.75453258,177.26,177.21,16.65613258]
[1730106421869,22.99653258,177.29,177.24,11.01313258]
[1730106422567,11.01313258,177.28,177.23,11.01313258]
[1730106422949,11.01313258,177.28,177.24,5.642]
[1730106424166,16.75423258,177.27,177.22,16.65583258]
[1730106426363,5.7411,177.27,177.23,11.01313258]
[1730106426868,5.6411,177.27,177.23,11.01313258]
[1730106427074,11.11313258,177.28,177.23,11.01313258]
[1730106427374,0.1,177.27,177.23,11.01313258]
[1730106427676,0.1,177.27,177.22,11.01313258]
[1730106427978,11.11313258,177.26,177.21,11.01313258]
[1730106429278,11.11313258,177.26,177.22,5.6427]
[1730106429857,16.75453258,177.26,177.22,5.6427]
[1730106430475,16.75453258,177.26,177.21,16.65603258]
[1730106430476,0.1,177.25,177.21,16.65603258]
[1730106431960,0.1,177.27,177.23,11.01313258]
[1730106433174,16.75393258,177.28,177.23,16.65523258]
[1730106433977,0.1,177.27,177.23,5.6421]
[1730106434178,0.1,177.27,177.23,11.01313258]
[1730106434362,0.1,177.27,177.17,5.6442]
[1730106434363,6.343,177.29,177.25,11.01313258]
[1730106435367,6.243,177.29,177.25,11.01313258]
[1730106435572,0.1,177.31,177.27,11.01313258]
[1730106436171,0.1,177.31,177.27,16.65393258]
[1730106437265,32.52513258,177.32,177.27,16.65393258]
[1730106437468,0.1,177.31,177.27,5.6408]
[1730106437770,0.1,177.31,177.27,30.75663258]
[1730106440067,21.5121,177.32,177.28,11.01313258]
[1730106440263,12.2452,177.34,177.3,11.01313258]
[1730106440474,0.1,177.33,177.31,11.01313258]
[1730106440675,0.1,177.33,177.3,11.01313258]
[1730106441290,0.1,177.35,177.32,11.01313258]
[1730106441674,0.1,177.34,177.32,11.01313258]
[1730106441868,0.1,177.34,177.31,11.01313258]
[1730106442787,0.1,177.34,177.31,16.65293258]
[1730106444487,0.1,177.37,177.33,11.01313258]
[1730106444797,0.1,177.37,177.35,11.01313258]
[1730106444967,30.0,177.36,177.35,11.01313258]
[1730106446089,30.0,177.36,177.34,11.01313258]
[1730106446496,0.1,177.37,177.34,11.01313258]
[1730106447481,5.7376,177.38,177.34,11.01313258]
[1730106447697,0.1,177.37,177.34,11.01313258]
[1730106448302,0.1,177.37,177.33,16.65223258]
[1730106450904,0.1,177.39,177.36,11.01313258]
[1730106451087,0.1,177.39,177.33,19.7371]
[1730106451088,0.5903972,177.41,177.38,11.01313258]
[1730106451411,0.5903972,177.41,177.4,11.01313258]
[1730106451574,0.5903972,177.41,177.33,35.6233]
[1730106451909,0.5903972,177.41,177.39,11.01313258]
[1730106452574,0.1,177.4,177.38,11.01313258]
[1730106452774,0.1,177.4,177.37,11.01313258]
[1730106452994,0.1,177.39,177.34,23.776884]
[1730106453182,0.1,177.38,177.34,11.01313258]
[1730106453382,0.1,177.37,177.33,25.11113258]
[1730106454689,0.1,177.35,177.29,20.0]
[1730106454893,0.1,177.35,177.31,11.01313258]
[1730106455202,0.1,177.35,177.32,11.01313258]
[1730106455676,5.7386,177.35,177.32,11.01313258]
[1730106456498,5.7386,177.35,177.29,14.1004]
[1730106456689,5.7386,177.35,177.31,11.01313258]
[1730106457703,16.75173258,177.35,177.3,34.79001658]
[1730106458683,11.11313258,177.35,177.3,34.79001658]
[1730106459615,5.6382,177.36,177.32,11.01313258]
[1730106459796,5.7382,177.36,177.32,11.01313258]
[1730106460606,0.1,177.35,177.32,11.01313258]
[1730106460977,0.1,177.35,177.31,5.6395]
[1730106460978,0.1,177.35,177.31,16.65263258]
[1730106462484,0.1,177.33,177.29,19.7408]
[1730106462690,0.1,177.34,177.3,11.01313258]
[1730106463006,0.1,177.35,177.31,11.01313258]
[1730106463309,0.1,177.34,177.3,11.01313258]
[1730106463495,0.1,177.33,177.3,11.01313258]
[1730106464504,0.1,177.33,177.29,11.01313258]
[1730106465891,5.739,177.34,177.3,16.65323258]
[1730106466100,16.75173258,177.35,177.3,16.65323258]
[1730106466487,0.1,177.34,177.3,16.65323258]
[1730106466893,16.65173258,177.35,177.3,16.65323258]
[1730106466894,16.75173258,177.35,177.3,16.65323258]
[1730106467106,5.7383,177.36,177.32,11.01313258]
[1730106467491,0.1,177.35,177.32,11.01313258]
[1730106467796,11.11313258,177.35,177.31,11.01313258]
[1730106467992,11.11313258,177.35,177.31,16.65273258]
[1730106468623,0.1,177.32,177.28,11.01313258]
[1730106469922,0.1,177.32,177.29,11.01313258]
[1730106470414,0.1,177.32,177.29,16.65333258]
[1730106471311,0.1,177.32,177.29,5.6402]
[1730106473607,0.1,177.32,177.29,11.01313258]
[1730106474615,0.1,177.35,177.31,11.01313258]
[1730106474809,0.1,177.36,177.32,11.01313258]
[1730106475018,16.65103258,177.37,177.32,11.01313258]
[1730106475019,0.1,177.35,177.32,11.01313258]
[1730106477216,5.7379,177.37,177.32,11.01313258]
[1730106477424,0.1,177.36,177.33,5.6392]
[1730106477809,11.11313258,177.36,177.33,5.6392]
[1730106478524,16.75143258,177.36,177.32,30.75133258]
[1730106478697,11.11313258,177.36,177.32,30.75133258]
[1730106480229,0.1,177.35,177.32,14.0987]
[1730106480403,11.11313258,177.35,177.3,11.01313258]
[1730106482396,5.6388,177.34,177.25,20.0]
[1730106482614,0.1,177.33,177.3,11.01313258]
[1730106483114,0.1,177.35,177.31,11.01313258]
[1730106483420,5.6382,177.36,177.32,11.01313258]
[1730106483611,0.1,177.38,177.33,11.01313258]
[1730106483911,0.1,177.38,177.34,11.01313258]
[1730106484127,0.1,177.36,177.33,11.01313258]
[1730106484317,0.1,177.36,177.32,11.01313258]
[1730106484504,0.1,177.35,177.31,11.01313258]
[1730106485216,5.7383,177.36,177.32,11.01313258]
[1730106485611,0.1,177.36,177.32,16.65243258]
[1730106487628,0.1,177.38,177.34,11.01313258]
[1730106489405,0.1,177.38,177.34,16.65183258]
[1730106489599,0.1,177.37,177.34,5.6387]
[1730106489818,0.1,177.35,177.33,5.6391]
[1730106490403,0.1,177.37,177.33,16.65223258]
[1730106491200,0.1,177.35,177.33,16.65223258]
[1730106491455,0.1,177.36,177.33,16.65223258]
[1730106491703,5.738,177.37,177.33,16.65223258]
[1730106492202,0.1,177.38,177.34,11.01313258]
[1730106492431,0.1,177.37,177.35,11.01313258]
[1730106492614,0.1,177.37,177.34,11.01313258]
[1730106493121,16.75063258,177.39,177.35,11.01313258]
[1730106493318,0.1,177.37,177.35,11.01313258]
[1730106494308,0.1,177.39,177.35,11.01313258]
[1730106494624,0.1,177.38,177.35,16.65143258]
[1730106495226,0.1,177.39,177.35,16.65143258]
[1730106495527,0.5903972,177.41,177.38,11.01313258]
[1730106495704,0.5903972,177.41,177.39,11.01313258]
[1730106496105,0.6903972,177.41,177.39,11.01313258]
[1730106496309,0.6903972,177.41,177.38,11.01313258]
[1730106497502,0.6903972,177.41,177.38,16.65063258]
[1730106499228,0.5903972,177.41,177.38,30.74463258]
[1730106499434,0.5903972,177.41,177.39,11.01313258]
[1730106500724,0.5903972,177.41,177.38,16.65053258]
[1730106502628,0.1,177.4,177.37,14.0944]
[1730106502846,11.11313258,177.4,177.37,14.0944]
[1730106503138,0.1,177.38,177.34,25.10983258]
[1730106503427,0.1,177.37,177.34,30.74863258]